[Event "Late-Titled-Tuesday-Blitz-March-12-2024"]
[Site "Chess.com"]
[Date "2024.03.12"]
[Round "4"]
[White "grandcoach"]
[Black "Flaccidmoves"]
[Result "0-1"]
[WhiteElo "2184"]
[BlackElo "2411"]
[TimeControl "180+1"]
[EndTime "14:34:14 PDT"]
[Termination "Flaccidmoves won by resignation"]

1. e4 {[%clk 0:02:54.5]} 1... d6 {[%clk 0:02:57.6]} 2. d4 {[%clk 0:02:53.9]}
2... Nf6 {[%clk 0:02:58.1]} 3. Nc3 {[%clk 0:02:54]} 3... e5 {[%clk 0:02:58.6]}
4. Nf3 {[%clk 0:02:52.8]} 4... Nbd7 {[%clk 0:02:58]} 5. Bc4 {[%clk 0:02:51.7]}
5... Be7 {[%clk 0:02:57.4]} 6. O-O {[%clk 0:02:51.5]} 6... O-O {[%clk
0:02:57.1]} 7. Re1 {[%clk 0:02:51.1]} 7... c6 {[%clk 0:02:56.4]} 8. a4 {[%clk
0:02:50.2]} 8... b6 {[%clk 0:02:55]} 9. Bb3 {[%clk 0:02:41.4]} 9... Bb7 {[%clk
0:02:52.1]} 10. a5 {[%clk 0:02:38.7]} 10... bxa5 {[%clk 0:02:51.3]} 11. dxe5
{[%clk 0:02:31.3]} 11... Nxe5 {[%clk 0:02:38.7]} 12. Nxe5 {[%clk 0:02:30.6]}
12... dxe5 {[%clk 0:02:39.6]} 13. Qxd8 {[%clk 0:02:27.2]} 13... Bxd8 {[%clk
0:02:39.3]} 14. Be3 {[%clk 0:02:21.5]} 14... Bb6 {[%clk 0:02:38.6]} 15. Na4
{[%clk 0:02:19.8]} 15... Nd7 {[%clk 0:02:29.6]} 16. Rad1 {[%clk 0:02:04.3]}
16... Bxe3 {[%clk 0:02:27]} 17. Rxe3 {[%clk 0:01:53]} 17... Nb6 {[%clk
0:02:17.5]} 18. Nc5 {[%clk 0:01:51.7]} 18... Bc8 {[%clk 0:02:13.4]} 19. h3
{[%clk 0:01:42.4]} 19... Be6 {[%clk 0:01:52.7]} 20. Bxe6 {[%clk 0:01:38.8]}
20... fxe6 {[%clk 0:01:53.6]} 21. Rd6 {[%clk 0:01:38.5]} 21... Nc4 {[%clk
0:01:51.3]} 22. Rxc6 {[%clk 0:01:28.7]} 22... Nxe3 {[%clk 0:01:50.2]} 23. fxe3
{[%clk 0:01:29.6]} 23... Rac8 {[%clk 0:01:50.1]} 0-1

[Event "Late-Titled-Tuesday-Blitz-March-12-2024"]
[Site "Chess.com"]
[Date "2024.03.12"]
[Round "4"]
[White "ploxoi"]
[Black "JaackCamel"]
[Result "0-1"]
[WhiteElo "2414"]
[BlackElo "2213"]
[TimeControl "180+1"]
[EndTime "14:34:36 PDT"]
[Termination "JaackCamel won by resignation"]

1. d4 {[%clk 0:03:00.9]} 1... d5 {[%clk 0:02:57.4]} 2. Nf3 {[%clk 0:03:00.2]}
2... e6 {[%clk 0:02:57.1]} 3. c4 {[%clk 0:03:00.3]} 3... c6 {[%clk 0:02:56.6]}
4. g3 {[%clk 0:02:56.9]} 4... dxc4 {[%clk 0:02:56.5]} 5. Ne5 {[%clk 0:02:56.2]}
5... b5 {[%clk 0:02:55]} 6. Bg2 {[%clk 0:02:55.5]} 6... Bb7 {[%clk 0:02:54.4]}
7. a4 {[%clk 0:02:54.9]} 7... Qc8 {[%clk 0:02:54.1]} 8. b3 {[%clk 0:02:50.9]}
8... cxb3 {[%clk 0:02:52.2]} 9. Qxb3 {[%clk 0:02:50.9]} 9... b4 {[%clk
0:02:50.6]} 10. a5 {[%clk 0:02:48.7]} 10... c5 {[%clk 0:02:49.3]} 11. dxc5
{[%clk 0:02:47]} 11... Bxg2 {[%clk 0:02:42.4]} 12. Rg1 {[%clk 0:02:44.7]} 12...
Bd5 {[%clk 0:02:38.9]} 13. Qxb4 {[%clk 0:02:42.9]} 13... Nc6 {[%clk 0:02:31]}
14. Nxc6 {[%clk 0:02:37.5]} 14... Qxc6 {[%clk 0:02:28.4]} 15. Be3 {[%clk
0:02:35.3]} 15... Nf6 {[%clk 0:02:21.9]} 16. Nc3 {[%clk 0:02:33]} 16... Be7
{[%clk 0:02:21.7]} 17. Rb1 {[%clk 0:02:28.7]} 17... O-O {[%clk 0:02:21.1]} 18.
Bd4 {[%clk 0:02:25.5]} 18... h6 {[%clk 0:02:16.5]} 19. Be5 {[%clk 0:02:18.9]}
19... Bxc5 {[%clk 0:02:08.7]} 20. Qb5 {[%clk 0:02:18.7]} 20... Qxb5 {[%clk
0:02:01.6]} 21. Rxb5 {[%clk 0:02:19.6]} 21... Rac8 {[%clk 0:01:40.3]} 22. Bxf6
{[%clk 0:02:16.2]} 22... gxf6 {[%clk 0:01:37.5]} 23. Nxd5 {[%clk 0:02:15.8]}
23... exd5 {[%clk 0:01:37.4]} 24. e3 {[%clk 0:02:10.3]} 24... d4 {[%clk
0:01:30]} 25. e4 {[%clk 0:02:09.5]} 25... d3 {[%clk 0:01:27.8]} 26. Kd2 {[%clk
0:02:09.4]} 26... Rfd8 {[%clk 0:01:12.7]} 27. Rf1 {[%clk 0:02:07.4]} 27... Bxf2
{[%clk 0:01:01.7]} 28. Rxf2 {[%clk 0:02:06.4]} 28... Rc2+ {[%clk 0:01:01.6]} 29.
Ke3 {[%clk 0:02:07]} 29... Rxf2 {[%clk 0:01:00.9]} 30. Kxf2 {[%clk 0:02:07.1]}
30... d2 {[%clk 0:01:01.1]} 0-1

[Event "Late-Titled-Tuesday-Blitz-March-12-2024"]
[Site "Chess.com"]
[Date "2024.03.12"]
[Round "4"]
[White "rdarruda"]
[Black "Bkmzzzzz"]
[Result "1-0"]
[WhiteElo "2553"]
[BlackElo "2379"]
[TimeControl "180+1"]
[EndTime "14:34:50 PDT"]
[Termination "rdarruda won by checkmate"]

1. d4 {[%clk 0:02:54.7]} 1... d5 {[%clk 0:02:59]} 2. Nf3 {[%clk 0:02:54.3]} 2...
Nf6 {[%clk 0:02:58.3]} 3. c4 {[%clk 0:02:36.1]} 3... dxc4 {[%clk 0:02:59.2]} 4.
e3 {[%clk 0:02:35.5]} 4... e6 {[%clk 0:02:58]} 5. Bxc4 {[%clk 0:02:34.7]} 5...
c5 {[%clk 0:02:58.5]} 6. O-O {[%clk 0:02:33.5]} 6... a6 {[%clk 0:02:57.9]} 7.
Qe2 {[%clk 0:02:33.3]} 7... cxd4 {[%clk 0:02:55.2]} 8. exd4 {[%clk 0:02:31.4]}
8... b5 {[%clk 0:02:44.4]} 9. Bb3 {[%clk 0:02:30.8]} 9... Be7 {[%clk 0:02:44.3]}
10. Nc3 {[%clk 0:02:29.9]} 10... O-O {[%clk 0:02:44]} 11. Bg5 {[%clk 0:02:23.8]}
11... Bb7 {[%clk 0:02:41.8]} 12. Rad1 {[%clk 0:02:21.9]} 12... h6 {[%clk
0:02:25.7]} 13. Bh4 {[%clk 0:02:21.4]} 13... Re8 {[%clk 0:01:37.9]} 14. Rfe1
{[%clk 0:02:20]} 14... Nbd7 {[%clk 0:01:33.3]} 15. Ne5 {[%clk 0:02:19.4]} 15...
Nb6 {[%clk 0:01:29.3]} 16. Nxf7 {[%clk 0:02:10.7]} 16... Kxf7 {[%clk 0:01:07.1]}
17. Qxe6+ {[%clk 0:02:09.1]} 17... Kg6 {[%clk 0:01:07.3]} 18. Bc2+ {[%clk
0:02:07.7]} 18... Kh5 {[%clk 0:01:03.7]} 19. Qf5+ {[%clk 0:01:47.9]} 19... g5
{[%clk 0:00:50.6]} 20. Bxg5 {[%clk 0:01:39]} 20... hxg5 {[%clk 0:00:50.1]} 21.
Qh3# {[%clk 0:01:38.6]} 1-0

[Event "Late-Titled-Tuesday-Blitz-March-12-2024"]
[Site "Chess.com"]
[Date "2024.03.12"]
[Round "4"]
[White "Timerkhanov"]
[Black "nj123456"]
[Result "0-1"]
[WhiteElo "2607"]
[BlackElo "2453"]
[TimeControl "180+1"]
[EndTime "14:34:59 PDT"]
[Termination "nj123456 won by resignation"]

1. d4 {[%clk 0:03:00.9]} 1... d5 {[%clk 0:02:59.5]} 2. Bf4 {[%clk 0:03:00.9]}
2... Nf6 {[%clk 0:02:59.4]} 3. e3 {[%clk 0:03:01.3]} 3... e6 {[%clk 0:02:59.6]}
4. Nf3 {[%clk 0:03:00.1]} 4... c5 {[%clk 0:02:59.9]} 5. c3 {[%clk 0:03:00.1]}
5... Nc6 {[%clk 0:02:59.8]} 6. Nbd2 {[%clk 0:03:00]} 6... Bd6 {[%clk 0:02:59.7]}
7. Bg3 {[%clk 0:03:00]} 7... O-O {[%clk 0:02:59.4]} 8. Bd3 {[%clk 0:02:59.6]}
8... b6 {[%clk 0:03:00]} 9. Qe2 {[%clk 0:02:54.7]} 9... Bb7 {[%clk 0:02:59.1]}
10. Rd1 {[%clk 0:02:53.6]} 10... Ne7 {[%clk 0:02:49.8]} 11. O-O {[%clk
0:02:48.7]} 11... Ne4 {[%clk 0:02:47.1]} 12. Bxe4 {[%clk 0:02:18.2]} 12... dxe4
{[%clk 0:02:46.4]} 13. Ng5 {[%clk 0:02:18.7]} 13... Bxg3 {[%clk 0:02:28.7]} 14.
fxg3 {[%clk 0:02:15.7]} 14... cxd4 {[%clk 0:02:22.3]} 15. exd4 {[%clk
0:02:12.8]} 15... Qd5 {[%clk 0:02:12]} 16. Ngxe4 {[%clk 0:01:58.1]} 16... Qxa2
{[%clk 0:02:07.4]} 17. Nf3 {[%clk 0:01:29.7]} 17... Ba6 {[%clk 0:02:03.7]} 18.
Qc2 {[%clk 0:01:14.6]} 18... Bxf1 {[%clk 0:02:02.3]} 19. Rxf1 {[%clk 0:01:11.7]}
19... Qd5 {[%clk 0:02:00.1]} 20. Ne5 {[%clk 0:01:11]} 20... Ng6 {[%clk
0:01:57.2]} 21. Ng4 {[%clk 0:01:06]} 21... f5 {[%clk 0:01:53.2]} 0-1

[Event "Late-Titled-Tuesday-Blitz-March-12-2024"]
[Site "Chess.com"]
[Date "2024.03.12"]
[Round "4"]
[White "GoltsevDmitry2000"]
[Black "Practical-Play"]
[Result "1-0"]
[WhiteElo "2694"]
[BlackElo "2462"]
[TimeControl "180+1"]
[EndTime "14:35:06 PDT"]
[Termination "GoltsevDmitry2000 won by resignation"]

1. e4 {[%clk 0:02:37.8]} 1... d5 {[%clk 0:02:56.5]} 2. exd5 {[%clk 0:02:36]}
2... Nf6 {[%clk 0:02:56.5]} 3. d4 {[%clk 0:02:35]} 3... Bg4 {[%clk 0:02:55.8]}
4. f3 {[%clk 0:02:32.4]} 4... Bd7 {[%clk 0:02:53.1]} 5. Nc3 {[%clk 0:02:27.4]}
5... e6 {[%clk 0:02:26.3]} 6. dxe6 {[%clk 0:02:25.2]} 6... Bxe6 {[%clk
0:02:27.2]} 7. Bd3 {[%clk 0:02:22.2]} 7... Nc6 {[%clk 0:02:24.8]} 8. Nge2 {[%clk
0:02:21.1]} 8... a6 {[%clk 0:01:59.3]} 9. a3 {[%clk 0:02:18.5]} 9... Bd6 {[%clk
0:01:58.6]} 10. O-O {[%clk 0:02:16.7]} 10... h5 {[%clk 0:01:53]} 11. Bg5 {[%clk
0:02:14.8]} 11... Bxh2+ {[%clk 0:01:11.9]} 12. Kxh2 {[%clk 0:02:11.7]} 12...
Ng4+ {[%clk 0:01:11.9]} 13. fxg4 {[%clk 0:02:08.3]} 13... hxg4+ {[%clk
0:01:12.1]} 14. Kg1 {[%clk 0:02:03.7]} 14... Qxg5 {[%clk 0:01:12.5]} 15. Qc1
{[%clk 0:01:52.3]} 15... Qh5 {[%clk 0:00:51.4]} 16. Qf4 {[%clk 0:01:48.8]} 16...
O-O-O {[%clk 0:00:51.2]} 17. d5 {[%clk 0:01:36.3]} 1-0

[Event "Late-Titled-Tuesday-Blitz-March-12-2024"]
[Site "Chess.com"]
[Date "2024.03.12"]
[Round "4"]
[White "Zampronha1971"]
[Black "robertoalejandro10"]
[Result "1-0"]
[WhiteElo "2330"]
[BlackElo "2525"]
[TimeControl "180+1"]
[EndTime "14:35:24 PDT"]
[Termination "Zampronha1971 won by resignation"]

1. e4 {[%clk 0:03:00.9]} 1... c5 {[%clk 0:02:58.3]} 2. Nf3 {[%clk 0:03:00.7]}
2... g6 {[%clk 0:02:58.2]} 3. d4 {[%clk 0:03:01]} 3... cxd4 {[%clk 0:02:59.1]}
4. Nxd4 {[%clk 0:03:01.4]} 4... Nc6 {[%clk 0:02:59.3]} 5. Nc3 {[%clk 0:03:01.6]}
5... Bg7 {[%clk 0:02:59.5]} 6. Be3 {[%clk 0:03:02.2]} 6... Nf6 {[%clk
0:02:59.9]} 7. Bc4 {[%clk 0:03:02.6]} 7... O-O {[%clk 0:03:00.1]} 8. Bb3 {[%clk
0:03:03.2]} 8... a5 {[%clk 0:03:00.8]} 9. O-O {[%clk 0:02:56]} 9... a4 {[%clk
0:03:00.8]} 10. Nxa4 {[%clk 0:02:53.4]} 10... Nxe4 {[%clk 0:03:00.9]} 11. c4
{[%clk 0:02:42.2]} 11... d6 {[%clk 0:02:59.5]} 12. Nb5 {[%clk 0:02:39.2]} 12...
Ra6 {[%clk 0:02:59]} 13. Qe2 {[%clk 0:02:32.5]} 13... Nf6 {[%clk 0:02:56.7]} 14.
h3 {[%clk 0:02:30.5]} 14... Bd7 {[%clk 0:02:56.8]} 15. Rfd1 {[%clk 0:02:30.4]}
15... Na5 {[%clk 0:02:56.7]} 16. Bc2 {[%clk 0:02:09.7]} 16... Nc6 {[%clk
0:02:47.6]} 17. a3 {[%clk 0:01:44.3]} 17... Be6 {[%clk 0:02:40.3]} 18. c5 {[%clk
0:01:40.8]} 18... d5 {[%clk 0:02:38.1]} 19. Bf4 {[%clk 0:01:34.6]} 19... Nd7
{[%clk 0:02:31.8]} 20. Nc7 {[%clk 0:01:27]} 20... Nde5 {[%clk 0:01:59.7]} 21.
Nxa6 {[%clk 0:01:21.8]} 21... bxa6 {[%clk 0:02:00.6]} 22. Nb6 {[%clk 0:01:13.7]}
22... d4 {[%clk 0:01:54.1]} 23. Be4 {[%clk 0:01:02.7]} 23... h6 {[%clk 0:01:49]}
24. Rac1 {[%clk 0:00:50.5]} 24... a5 {[%clk 0:01:42.6]} 25. Qd2 {[%clk
0:00:49.4]} 25... g5 {[%clk 0:01:40.1]} 26. Bxe5 {[%clk 0:00:48.5]} 26... Bxe5
{[%clk 0:01:41]} 27. Bxc6 {[%clk 0:00:47.3]} 1-0

[Event "Late-Titled-Tuesday-Blitz-March-12-2024"]
[Site "Chess.com"]
[Date "2024.03.12"]
[Round "4"]
[White "Iljiushenok_Ilya"]
[Black "tptagain"]
[Result "0-1"]
[WhiteElo "2779"]
[BlackElo "2959"]
[TimeControl "180+1"]
[EndTime "14:35:26 PDT"]
[Termination "tptagain won by resignation"]

1. e4 {[%clk 0:02:52.1]} 1... Nc6 {[%clk 0:02:57.5]} 2. Nc3 {[%clk 0:02:50.4]}
2... e5 {[%clk 0:02:57.2]} 3. Bc4 {[%clk 0:02:49.8]} 3... g6 {[%clk 0:02:55.8]}
4. d3 {[%clk 0:02:45.9]} 4... Bg7 {[%clk 0:02:55.4]} 5. f4 {[%clk 0:02:46.5]}
5... d6 {[%clk 0:02:44.7]} 6. Nf3 {[%clk 0:02:46.1]} 6... exf4 {[%clk 0:02:40]}
7. Bxf4 {[%clk 0:02:44.3]} 7... Na5 {[%clk 0:02:40.5]} 8. Bb3 {[%clk 0:02:30.1]}
8... Nxb3 {[%clk 0:02:38.3]} 9. axb3 {[%clk 0:02:31]} 9... Ne7 {[%clk
0:02:38.1]} 10. Qd2 {[%clk 0:02:30.1]} 10... h6 {[%clk 0:02:38.4]} 11. O-O-O
{[%clk 0:02:23.9]} 11... a5 {[%clk 0:02:34.8]} 12. Rhf1 {[%clk 0:02:22.3]} 12...
a4 {[%clk 0:02:31.7]} 13. bxa4 {[%clk 0:02:18.7]} 13... b5 {[%clk 0:02:24.9]}
14. e5 {[%clk 0:01:30.2]} 14... b4 {[%clk 0:02:23.4]} 15. Ne4 {[%clk 0:01:28.7]}
15... Rxa4 {[%clk 0:02:18.2]} 16. b3 {[%clk 0:01:17.8]} 16... Ra1+ {[%clk
0:02:18.3]} 17. Kb2 {[%clk 0:01:18]} 17... Rxd1 {[%clk 0:02:19.2]} 18. Rxd1
{[%clk 0:01:16]} 18... Nd5 {[%clk 0:02:19.6]} 19. d4 {[%clk 0:01:12.8]} 19... g5
{[%clk 0:01:58.6]} 20. Bg3 {[%clk 0:01:09.7]} 20... Bf5 {[%clk 0:01:49.3]} 21.
Re1 {[%clk 0:00:57.4]} 21... O-O {[%clk 0:01:41.5]} 22. exd6 {[%clk 0:00:41.2]}
22... Bxe4 {[%clk 0:01:40.5]} 23. Rxe4 {[%clk 0:00:40.7]} 23... Qa8 {[%clk
0:01:39.6]} 24. Re1 {[%clk 0:00:36.2]} 24... Qa3+ {[%clk 0:01:38.8]} 0-1

[Event "Late-Titled-Tuesday-Blitz-March-12-2024"]
[Site "Chess.com"]
[Date "2024.03.12"]
[Round "4"]
[White "maurovargas01"]
[Black "Byniolus"]
[Result "0-1"]
[WhiteElo "1839"]
[BlackElo "2782"]
[TimeControl "180+1"]
[EndTime "14:35:32 PDT"]
[Termination "Byniolus won on time"]

1. e4 {[%clk 0:02:59]} 1... a6 {[%clk 0:02:56.7]} 2. Nc3 {[%clk 0:02:56.9]} 2...
b6 {[%clk 0:02:57.2]} 3. f4 {[%clk 0:02:55.8]} 3... c6 {[%clk 0:02:57.7]} 4. Nf3
{[%clk 0:02:54.8]} 4... d6 {[%clk 0:02:58.3]} 5. d3 {[%clk 0:02:54.4]} 5... e6
{[%clk 0:02:59.1]} 6. g3 {[%clk 0:02:54.1]} 6... f6 {[%clk 0:02:59.7]} 7. Bg2
{[%clk 0:02:54.3]} 7... g6 {[%clk 0:02:59.8]} 8. O-O {[%clk 0:02:54.4]} 8... h6
{[%clk 0:02:59.7]} 9. e5 {[%clk 0:02:49.8]} 9... dxe5 {[%clk 0:02:57.2]} 10.
fxe5 {[%clk 0:02:49.1]} 10... f5 {[%clk 0:02:57.8]} 11. Nh4 {[%clk 0:02:43.9]}
11... Ne7 {[%clk 0:02:56.8]} 12. Qe1 {[%clk 0:02:30.4]} 12... Bg7 {[%clk
0:02:51.3]} 13. b4 {[%clk 0:01:42.6]} 13... Qd4+ {[%clk 0:02:38.7]} 14. Be3
{[%clk 0:01:30.9]} 14... Qxe5 {[%clk 0:02:35.4]} 15. d4 {[%clk 0:01:26.8]} 15...
Qd6 {[%clk 0:02:31.1]} 16. b5 {[%clk 0:01:17.2]} 16... O-O {[%clk 0:02:22]} 17.
Rb1 {[%clk 0:01:10.2]} 17... g5 {[%clk 0:02:13.6]} 18. Nf3 {[%clk 0:00:57.7]}
18... axb5 {[%clk 0:02:13.4]} 19. Ne5 {[%clk 0:00:45.3]} 19... Ra3 {[%clk
0:02:10.3]} 20. Rd1 {[%clk 0:00:17.3]} 20... Nd7 {[%clk 0:02:08.2]} 21. Nf3
{[%clk 0:00:04.4]} 21... b4 {[%clk 0:01:59.8]} 22. Nb1 {[%clk 0:00:03.7]} 22...
Rxa2 {[%clk 0:01:58.7]} 0-1

[Event "Late-Titled-Tuesday-Blitz-March-12-2024"]
[Site "Chess.com"]
[Date "2024.03.12"]
[Round "4"]
[White "Bryanl106"]
[Black "Yushko_Olga"]
[Result "1-0"]
[WhiteElo "2663"]
[BlackElo "2196"]
[TimeControl "180+1"]
[EndTime "14:35:35 PDT"]
[Termination "Bryanl106 won by resignation"]

1. e4 {[%clk 0:02:57.6]} 1... e6 {[%clk 0:02:59.1]} 2. d4 {[%clk 0:02:57.4]}
2... d5 {[%clk 0:02:59.8]} 3. Nd2 {[%clk 0:02:57.8]} 3... Nf6 {[%clk 0:02:59.6]}
4. e5 {[%clk 0:02:58]} 4... Nfd7 {[%clk 0:02:59.9]} 5. f4 {[%clk 0:02:58.7]}
5... c5 {[%clk 0:03:00.3]} 6. c3 {[%clk 0:02:59.4]} 6... Nc6 {[%clk 0:03:01.1]}
7. Ndf3 {[%clk 0:02:59.3]} 7... Qb6 {[%clk 0:03:00.9]} 8. a3 {[%clk 0:02:59.7]}
8... cxd4 {[%clk 0:03:00.4]} 9. cxd4 {[%clk 0:02:59.5]} 9... f6 {[%clk
0:02:59.6]} 10. Bd3 {[%clk 0:02:58.8]} 10... Be7 {[%clk 0:02:58.2]} 11. Ne2
{[%clk 0:02:58.9]} 11... O-O {[%clk 0:02:57.8]} 12. b4 {[%clk 0:02:59.4]} 12...
Re8 {[%clk 0:02:51.9]} 13. h4 {[%clk 0:02:58]} 13... Nf8 {[%clk 0:02:51.3]} 14.
h5 {[%clk 0:02:56.4]} 14... fxe5 {[%clk 0:02:43.1]} 15. fxe5 {[%clk 0:02:55.9]}
15... Bd7 {[%clk 0:02:37.6]} 16. h6 {[%clk 0:02:51.5]} 16... g6 {[%clk
0:02:37.8]} 17. Be3 {[%clk 0:02:39.5]} 17... Rac8 {[%clk 0:02:28.4]} 18. Kf2
{[%clk 0:02:36.3]} 18... Rc7 {[%clk 0:02:25.5]} 19. Qd2 {[%clk 0:02:33.5]} 19...
Bc8 {[%clk 0:02:24.6]} 20. Rhc1 {[%clk 0:02:34.2]} 20... Nd7 {[%clk 0:02:21.6]}
21. Nf4 {[%clk 0:02:33]} 21... Ndxe5 {[%clk 0:02:11.8]} 22. dxe5 {[%clk
0:02:24.3]} 22... d4 {[%clk 0:02:08.6]} 23. Nxd4 {[%clk 0:02:24.7]} 23... Nxd4
{[%clk 0:02:03.2]} 24. Rxc7 {[%clk 0:02:23.1]} 24... Qxc7 {[%clk 0:01:59.1]} 25.
Bxd4 {[%clk 0:02:22.3]} 25... Rd8 {[%clk 0:01:59]} 26. Qe3 {[%clk 0:02:22.3]}
26... Bg5 {[%clk 0:01:56.7]} 27. g3 {[%clk 0:02:20]} 27... Qd7 {[%clk
0:01:47.4]} 28. Rc1 {[%clk 0:02:18.4]} 28... b6 {[%clk 0:01:37.2]} 29. Be2
{[%clk 0:02:02.5]} 29... Bb7 {[%clk 0:01:30.3]} 30. Rd1 {[%clk 0:01:55.8]} 30...
Qf7 {[%clk 0:01:27.9]} 31. Kg1 {[%clk 0:01:53.2]} 31... Rf8 {[%clk 0:01:22.7]}
32. Bf3 {[%clk 0:01:51.8]} 32... Bxf3 {[%clk 0:01:09.4]} 33. Qxf3 {[%clk
0:01:52.7]} 33... Bxh6 {[%clk 0:01:09.7]} 34. Be3 {[%clk 0:01:51.5]} 34... g5
{[%clk 0:01:09]} 35. Qg4 {[%clk 0:01:50]} 35... Kh8 {[%clk 0:01:04.8]} 36. Nxe6
{[%clk 0:01:48.9]} 36... Re8 {[%clk 0:01:02.6]} 37. Rd8 {[%clk 0:01:44.5]} 37...
Rxd8 {[%clk 0:00:54.2]} 38. Nxd8 {[%clk 0:01:45.4]} 38... Bg7 {[%clk 0:00:52.3]}
39. Nxf7+ {[%clk 0:01:45.3]} 1-0

[Event "Late-Titled-Tuesday-Blitz-March-12-2024"]
[Site "Chess.com"]
[Date "2024.03.12"]
[Round "4"]
[White "chessamical"]
[Black "Chessbard1972"]
[Result "1-0"]
[WhiteElo "2230"]
[BlackElo "2415"]
[TimeControl "180+1"]
[EndTime "14:35:39 PDT"]
[Termination "chessamical won on time"]

1. d4 {[%clk 0:03:00.9]} 1... Nf6 {[%clk 0:02:58.5]} 2. Bf4 {[%clk 0:02:58.8]}
2... d5 {[%clk 0:02:57.1]} 3. e3 {[%clk 0:02:58.7]} 3... c5 {[%clk 0:02:56.8]}
4. Nf3 {[%clk 0:02:59.1]} 4... Qb6 {[%clk 0:02:47.4]} 5. Nc3 {[%clk 0:02:55.1]}
5... cxd4 {[%clk 0:02:44.3]} 6. exd4 {[%clk 0:02:48.3]} 6... a6 {[%clk
0:02:37.6]} 7. a3 {[%clk 0:02:38.8]} 7... Nc6 {[%clk 0:02:34.8]} 8. Na4 {[%clk
0:02:13]} 8... Qa5+ {[%clk 0:02:30.9]} 9. b4 {[%clk 0:02:12.1]} 9... Qxa4 {[%clk
0:02:28.1]} 10. Bd3 {[%clk 0:01:39.1]} 10... Bg4 {[%clk 0:00:47.8]} 11. Be2
{[%clk 0:01:17.8]} 1-0

[Event "Late-Titled-Tuesday-Blitz-March-12-2024"]
[Site "Chess.com"]
[Date "2024.03.12"]
[Round "4"]
[White "waltereador"]
[Black "kleber2007"]
[Result "0-1"]
[WhiteElo "2323"]
[BlackElo "2531"]
[TimeControl "180+1"]
[EndTime "14:35:42 PDT"]
[Termination "kleber2007 won by resignation"]

1. e4 {[%clk 0:03:00.9]} 1... c6 {[%clk 0:02:59.5]} 2. d4 {[%clk 0:02:58.7]}
2... d5 {[%clk 0:03:00]} 3. Nc3 {[%clk 0:02:54.2]} 3... dxe4 {[%clk 0:02:59.3]}
4. Bc4 {[%clk 0:02:54.2]} 4... Nf6 {[%clk 0:02:58.2]} 5. f3 {[%clk 0:02:53.9]}
5... exf3 {[%clk 0:02:47]} 6. Nxf3 {[%clk 0:02:54.8]} 6... Bf5 {[%clk
0:02:47.1]} 7. O-O {[%clk 0:02:54.5]} 7... e6 {[%clk 0:02:47.1]} 8. Ne5 {[%clk
0:02:54.6]} 8... Bg6 {[%clk 0:02:42.9]} 9. Bg5 {[%clk 0:02:45.8]} 9... Be7
{[%clk 0:02:42.2]} 10. Ne2 {[%clk 0:02:46]} 10... Nbd7 {[%clk 0:02:41.4]} 11.
Nxg6 {[%clk 0:02:40.9]} 11... hxg6 {[%clk 0:02:40.9]} 12. c3 {[%clk 0:02:39.1]}
12... Nd5 {[%clk 0:02:38.3]} 13. Bd2 {[%clk 0:02:35.3]} 13... Bd6 {[%clk
0:02:36.6]} 14. h3 {[%clk 0:02:35.5]} 14... Qh4 {[%clk 0:02:33]} 15. Bxd5 {[%clk
0:02:34.1]} 15... exd5 {[%clk 0:02:23.3]} 16. Qe1 {[%clk 0:02:34.3]} 16... Qxe1
{[%clk 0:02:21.7]} 17. Raxe1 {[%clk 0:02:33.1]} 17... O-O {[%clk 0:02:16.9]} 18.
Bf4 {[%clk 0:02:31]} 18... Bxf4 {[%clk 0:02:14.5]} 19. Nxf4 {[%clk 0:02:31.3]}
19... Rfe8 {[%clk 0:02:13.7]} 20. Nd3 {[%clk 0:02:30.4]} 20... f6 {[%clk
0:02:12.4]} 21. Kf2 {[%clk 0:02:27]} 21... Kf7 {[%clk 0:02:11.6]} 22. Nf4 {[%clk
0:02:25.8]} 22... g5 {[%clk 0:02:10.5]} 23. Nd3 {[%clk 0:02:25.3]} 23... Re4
{[%clk 0:01:57.1]} 24. Re2 {[%clk 0:02:21]} 24... Rae8 {[%clk 0:01:56.4]} 25.
Rfe1 {[%clk 0:02:21]} 25... Rxe2+ {[%clk 0:01:53.7]} 26. Rxe2 {[%clk 0:02:20.7]}
26... Rxe2+ {[%clk 0:01:54.6]} 27. Kxe2 {[%clk 0:02:21]} 27... Ke6 {[%clk
0:01:54.5]} 28. g4 {[%clk 0:02:20.1]} 28... g6 {[%clk 0:01:51.1]} 29. Kf3 {[%clk
0:02:19.5]} 29... f5 {[%clk 0:01:51.1]} 30. b4 {[%clk 0:02:12.7]} 30... b6
{[%clk 0:01:50.2]} 31. a3 {[%clk 0:02:10.7]} 31... Kd6 {[%clk 0:01:41.9]} 32.
Ke3 {[%clk 0:02:10.5]} 32... c5 {[%clk 0:01:41.8]} 33. b5 {[%clk 0:02:06.2]}
33... f4+ {[%clk 0:01:38.4]} 34. Kf3 {[%clk 0:02:05.2]} 34... Ke6 {[%clk
0:01:35.1]} 35. a4 {[%clk 0:02:02.4]} 35... c4 {[%clk 0:01:28.8]} 36. Nb4 {[%clk
0:02:01]} 36... Nf6 {[%clk 0:01:28.9]} 37. Nc6 {[%clk 0:01:59.5]} 37... Ne4
{[%clk 0:01:28.5]} 38. Nxa7 {[%clk 0:01:58.7]} 38... Nxc3 {[%clk 0:01:28.2]} 39.
Nc6 {[%clk 0:01:45.3]} 39... Nxa4 {[%clk 0:01:27.9]} 40. Ne5 {[%clk 0:01:41.8]}
40... Nc3 {[%clk 0:01:26.4]} 41. Nxg6 {[%clk 0:01:41.6]} 41... Nxb5 {[%clk
0:01:26.8]} 42. Nxf4+ {[%clk 0:01:39.4]} 42... gxf4 {[%clk 0:01:25.4]} 43. Kxf4
{[%clk 0:01:40.3]} 43... Nxd4 {[%clk 0:01:19.7]} 44. h4 {[%clk 0:01:39.7]} 44...
c3 {[%clk 0:01:19.1]} 45. Ke3 {[%clk 0:01:38.7]} 45... b5 {[%clk 0:01:17]} 46.
h5 {[%clk 0:01:37.5]} 46... Kf6 {[%clk 0:01:15.9]} 47. h6 {[%clk 0:01:36.8]}
47... Kg6 {[%clk 0:01:16]} 48. g5 {[%clk 0:01:37.1]} 48... Nf5+ {[%clk
0:01:15.6]} 49. Kd3 {[%clk 0:01:36.6]} 49... b4 {[%clk 0:01:16.2]} 50. Kc2
{[%clk 0:01:36.3]} 50... Nxh6 {[%clk 0:01:16]} 51. gxh6 {[%clk 0:01:35.8]} 51...
Kxh6 {[%clk 0:01:16.3]} 0-1